fUST/lending_fUST_20260413
["ID","MTS","AMOUNT","RATE_DAILY","PERIOD"]
[420374433,1776043848287,-801.85129955,0.00018526,2]
[420374436,1776043848300,-820.0,0.00018534,2]
[420374437,1776043848313,-441.0,0.00018575,2]
[420374438,1776043848332,-184.0,0.00018575,2]
[420374439,1776043848344,-831.51979763,0.00018581,2]
[420374440,1776043848354,-862.28603014,0.00018636,2]
[420374441,1776043848374,-207.794024,0.00018636,2]
[420374442,1776043848399,-195.34465,0.00018636,7]
[420374443,1776043848416,-160.0,0.00018687,7]
[420374444,1776043848438,-870.856719,0.00018687,7]
[420374445,1776043848455,-1581.713438,0.00018687,7]
[420374446,1776043848466,-894.19061326,0.00018691,2]
[420374447,1776043848486,-1282.6656944,0.00018706,2]
[420374448,1776043848500,-292.495035,0.00018794,7]
[420374449,1776043848511,-160.0,0.00018794,7]
[420374450,1776043848524,-151.0,0.000188,2]
[420374451,1776043848535,-2500.0,0.00018858,2]
[420374452,1776043848554,-500.0,0.00019017,2]
[420374453,1776043848571,-578.20924308,0.00019017,2]
[420374454,1776043848590,-2312.83697232,0.00019017,2]
[420374455,1776043848600,-1528.0,0.00019068,2]
[420374456,1776043848610,-151.0,0.000191,2]
[420374457,1776043848658,-151.0,0.000191,2]
[420374458,1776043848669,-286.2014018,0.00019177,2]
[420374459,1776043848682,-470.84,0.00019178,2]
[420374460,1776043848696,-200.0,0.00019178,2]
[420374461,1776043848707,-200.0,0.00019178,2]
[420374462,1776043848717,-193.78815186,0.0001929,2]
[420374463,1776043848736,-205.46860056,0.0001929,2]
[420374464,1776043848746,-720.0,0.0001931,2]
[420374465,1776043848770,-151.0,0.000194,2]
[420374466,1776043848781,-151.0,0.000194,2]
[420374467,1776043848792,-3000.0,0.00019406,2]
[420374468,1776043848818,-500.0,0.00019565,2]
[420374469,1776043848831,-599.60298507,0.00019565,2]
[420374470,1776043848841,-2398.4119403,0.00019565,2]
[420374471,1776043848855,-800.0,0.00019595,2]
[420374472,1776043848874,-776.00946949,0.000196,2]
[420374474,1776043848903,-800.0,0.00019605,2]
[420374476,1776043848914,-673.0,0.00019616,2]
[420374478,1776043848926,-1781.297834,0.00019621,7]
[420374480,1776043848968,-312.39892362,0.00019626,2]
[420374482,1776043848981,-1502.561907,0.00019726,2]
[420374484,1776043849003,-2294.01225794,0.00019726,2]
[420374659,1776044040189,1210.57,0.00027397,120]
[420374664,1776044253855,151.0,0.00027397,120]
[420374665,1776044263742,151.0,0.00027397,120]
[420374666,1776044272304,151.0,0.00027397,120]
[420374667,1776044280575,151.0,0.00027397,120]
[420374668,1776044290098,151.0,0.00027397,120]
[420374669,1776044298968,151.0,0.00027397,120]
[420374670,1776044308036,151.0,0.00027397,120]
[420374671,1776044317453,151.0,0.00027397,120]
[420374672,1776044325779,151.0,0.00027397,120]
[420374673,1776044336229,151.0,0.00027397,120]
[420374674,1776044346139,151.0,0.00027397,120]
[420374675,1776044356064,151.0,0.00027397,120]
[420374676,1776044366197,151.0,0.00027397,120]
[420374677,1776044376008,151.0,0.00027397,120]
[420374678,1776044387004,151.0,0.00027397,120]
[420374679,1776044398966,151.0,0.00027397,120]
[420374680,1776044471593,526.3,0.0002739,120]
[420374682,1776044875660,20130.56122892,0.00027,120]
[420374714,1776044979955,664.0,0.00027397,120]
[420374722,1776045032385,-2459.34844098,0.00012264,10]
[420374723,1776045032410,-670.94,0.00012264,10]
[420374725,1776045032439,-1869.71155902,0.00012264,10]
[420374727,1776045032449,-5000.0,0.00012388,10]
[420374729,1776045032467,-300.0,0.00012892,2]
[420374731,1776045032476,-603.0,0.00012892,2]
[420374733,1776045032490,-1200.0,0.00012894,2]
[420374735,1776045032502,-1000.0,0.00013699,2]
[420374737,1776045032511,-300.0,0.00013831,2]
[420374738,1776045032522,-300.0,0.00013832,2]
[420374739,1776045032541,-300.0,0.00013832,2]
[420374741,1776045032551,-300.0,0.00013832,2]
[420374744,1776045032561,-300.0,0.00013832,2]
[420374746,1776045032570,-300.0,0.00013832,2]
[420374749,1776045032582,-300.0,0.00013832,2]
[420374751,1776045032592,-300.0,0.00013832,2]
[420374753,1776045032607,-300.0,0.00013832,2]
[420374755,1776045032616,-300.0,0.00013832,2]
[420374757,1776045032627,-300.0,0.00013832,2]
[420374759,1776045032637,-300.0,0.00013832,2]
[420374761,1776045032654,-300.0,0.00013832,2]
[420374763,1776045032663,-300.0,0.00013832,2]
[420374765,1776045032676,-300.0,0.00013832,2]
[420374767,1776045032694,-300.0,0.00013832,2]
[420374769,1776045032703,-224.05721441,0.00013832,2]
[420375016,1776045041298,-4069.70325648,0.00013694,10]
[420375018,1776045041319,-679.74568273,0.00013694,10]
[420375020,1776045041332,-250.55106079,0.00013694,10]
[420375022,1776045041346,-626.82472562,0.00013832,2]
[420375045,1776045041795,-38551.63651302,0.00013832,2]
[420375046,1776045041805,-600.0,0.00014108,2]
[420375048,1776045041838,-420.0,0.0001414,2]
[420375050,1776045041855,-1680.0,0.00014183,2]
[420375051,1776045041880,-194.73507977,0.00014576,2]
[420375054,1776045041894,-569.01420577,0.00014669,2]
[420375056,1776045041906,-160.0,0.00015,2]
[420375057,1776045041943,-172.5354702,0.00015068,2]
[420375060,1776045041953,-10000.0,0.00015205,2]
[420375062,1776045041973,-720.0,0.00015518,2]
[420375064,1776045041988,-2351.0,0.00015602,2]
[420375066,1776045041998,-160.0,0.00015712,2]
[420375067,1776045042018,-160.0,0.00015712,2]
[420375068,1776045042032,-1408.0,0.00015923,2]
[420375069,1776045042042,-646.223,0.00015923,2]
[420375070,1776045042058,-2207.0,0.00015923,2]
[420375071,1776045042077,-173.90611571,0.000164,2]
[420375073,1776045042087,-292.42633371,0.000164,2]
[420375075,1776045042101,-6404.81194419,0.00016473,2]
[420375077,1776045042117,-3746.0,0.000165,7]
[420375079,1776045042126,-602.13,0.00016557,3]
[420375081,1776045042136,-301.07,0.00016557,3]
[420375083,1776045042145,-150.53,0.00016557,3]
[420375085,1776045042163,-451.62,0.00016557,3]
[420375087,1776045042173,-34307.17653259,0.00016564,2]
[420375089,1776045042185,-500.0,0.00016573,2]
[420375092,1776045042197,-500.0,0.00016573,2]
[420375093,1776045042210,-864.0,0.0001707,2]
[420375095,1776045042218,-341.01782609,0.00017078,2]
[420375097,1776045042225,-537.6845,0.00017078,2]
[420375099,1776045042233,-2150.738,0.00017078,2]
[420375101,1776045042243,-1000.0,0.00017121,2]
[420375103,1776045042257,-1008.02230562,0.00017121,2]
[420375105,1776045042266,-2890.0,0.00017162,2]
[420375107,1776045042282,-200.11238305,0.00017626,2]
[420375109,1776045042297,-2230.315306,0.00017626,2]
[420375111,1776045042306,-1500.0,0.00017668,2]
[420375113,1776045042320,-6404.8119441,0.00017718,2]
[420375115,1776045042341,-615.23258285,0.00017856,5]
[420375117,1776045042350,-1204.26,0.00017927,3]
[420375119,1776045042367,-602.14,0.00017927,3]
[420375121,1776045042384,-301.06,0.00017927,3]
[420375123,1776045042401,-902.0,0.00017997,2]
[420375125,1776045042411,-2312.83697232,0.00018174,2]
[420375127,1776045042422,-2000.0,0.00018216,2]
[420375129,1776045042447,-2398.4119403,0.00018722,2]
[420375130,1776045042459,-2500.0,0.00018764,2]
[420375133,1776045042478,-1000.0,0.00018777,2]
[420375135,1776045042495,-1374.085,0.00018923,2]
[420375137,1776045042507,-2207.0,0.00018923,2]
[420375139,1776045042517,-6404.8119441,0.00018963,2]
[420375141,1776045042526,-164.51244926,0.00019178,3]
[420375143,1776045042539,-200.0,0.00019178,2]
[420375145,1776045042562,-200.0,0.00019178,2]
[420375147,1776045042571,-2487.15318209,0.0001927,2]
[420375148,1776045042588,-3000.0,0.00019312,2]
[420375150,1776045042598,-518.86208168,0.000196,2]
[420375153,1776045042608,-732.39880906,0.00019726,2]
[420375174,1776045042801,-1319.5295,0.00019726,2]
[420375181,1776045042837,-320.8311,0.00019726,2]
[420375183,1776045042851,-151.0,0.00019726,2]
[420375187,1776045042863,-151.0,0.00019726,2]
[420375191,1776045042875,-151.0,0.00019726,2]
[420375193,1776045042890,-153.474063,0.00019726,2]
[420375195,1776045042901,-2850.3949,0.00019726,2]
[420375197,1776045042911,-2850.3949,0.00019726,2]
[420375199,1776045042923,-151.0,0.00019726,2]
[420375201,1776045042935,-151.0,0.00019726,2]
[420375203,1776045042946,-151.0,0.00019726,2]
[420375205,1776045042956,-151.521604,0.00019726,2]
[420375207,1776045042974,-178.19732614,0.00019726,2]
[420375209,1776045042986,-160.02948141,0.00019726,2]
[420375211,1776045042997,-504.12819231,0.00019726,2]
[420375214,1776045043011,-587.04,0.00019726,2]
[420375216,1776045043034,-587.04,0.00019726,2]
[420375218,1776045043044,-587.04,0.00019726,2]
[420375220,1776045043060,-587.04,0.00019726,2]
[420375222,1776045043080,-587.04,0.00019726,2]
[420375225,1776045043090,-587.04,0.00019726,2]
[420375227,1776045043117,-587.04,0.00019726,2]
[420375229,1776045043133,-587.04,0.00019726,2]
[420375231,1776045043150,-587.04,0.00019726,2]
[420375233,1776045043181,-587.04,0.00019726,2]
[420375235,1776045043249,-587.04,0.00019726,2]
[420375237,1776045043284,-500.0,0.00019726,2]
[420375239,1776045043294,-587.04,0.00019726,2]
[420375241,1776045043310,-587.04,0.00019726,2]
[420375243,1776045043335,-181.08558394,0.00019726,2]
[420375245,1776045043361,-587.04,0.00019726,2]
[420375246,1776045043377,-587.04,0.00019726,2]
[420375248,1776045043387,-587.04,0.00019726,2]
[420375251,1776045043408,-587.04,0.00019726,2]
[420375252,1776045043421,-587.04,0.00019726,2]
[420375255,1776045043431,-587.04,0.00019726,2]
[420375257,1776045043448,-587.04,0.00019726,2]
[420375259,1776045043457,-587.04,0.00019726,2]
[420375261,1776045043477,-587.04,0.00019726,2]
[420375263,1776045043488,-587.04,0.00019726,2]
[420375265,1776045043499,-587.04,0.00019726,2]
[420375267,1776045043509,-505.41298258,0.00019726,2]
[420375269,1776045043523,-500.0,0.00019726,2]
[420375271,1776045043533,-258.91120167,0.00019726,2]
[420375273,1776045043544,-500.0,0.00019726,2]
[420375275,1776045043554,-562.99805475,0.00019726,2]
[420375277,1776045043574,-500.0,0.00019726,2]
[420375279,1776045043584,-500.0,0.00019726,2]
[420375281,1776045043593,-226.05796089,0.00019726,2]
[420375283,1776045043605,-503.41647411,0.00019726,2]
[420375284,1776045043616,-159.69432864,0.00019726,2]
[420375286,1776045043629,-506.77788693,0.00019726,2]
[420375289,1776045043639,-572.0761948,0.00019726,2]
[420375291,1776045043652,-506.23949886,0.00019726,2]
[420375293,1776045043661,-532.74865122,0.00019726,2]
[420375295,1776045043672,-500.0,0.00019726,2]
[420375297,1776045043682,-441.69124258,0.00019726,2]
[420375299,1776045043699,-152.26502026,0.00019726,2]
[420375300,1776045043710,-184.33215701,0.00019726,2]
[420375302,1776045043720,-500.0,0.00019726,2]
[420375305,1776045043734,-635.20132565,0.00019726,2]
[420375307,1776045043744,-407.60459715,0.00019726,2]
[420375309,1776045043754,-500.0,0.00019726,2]
[420375311,1776045043765,-460.01161739,0.00019726,2]
[420375313,1776045043780,-500.0,0.00019726,2]
[420375314,1776045043790,-500.0,0.00019726,2]
[420375316,1776045043800,-220.14680862,0.00019726,2]
[420375318,1776045043809,-500.0,0.00019726,2]
[420375320,1776045043825,-500.0,0.00019726,2]
[420375323,1776045043843,-500.0,0.00019726,2]
[420375325,1776045043852,-210.03475706,0.00019726,2]
[420375327,1776045043866,-633.67952898,0.00019726,2]
[420375328,1776045043879,-501.86876854,0.00019726,2]
[420375330,1776045043902,-500.0,0.00019726,2]
[420375332,1776045043912,-500.0,0.00019726,2]
[420375335,1776045043922,-500.0,0.00019726,2]
[420375337,1776045043941,-500.0,0.00019726,2]
[420375338,1776045043951,-500.0,0.00019726,2]
[420375341,1776045043962,-500.0,0.00019726,2]
[420375343,1776045043983,-500.0,0.00019726,2]
[420375345,1776045043993,-500.0,0.00019726,2]
[420375346,1776045044023,-500.0,0.00019726,2]
[420375348,1776045044033,-500.0,0.00019726,2]
[420375350,1776045044057,-500.0,0.00019726,2]
[420375353,1776045044073,-500.0,0.00019726,2]
[420375354,1776045044093,-500.0,0.00019726,2]
[420375356,1776045044104,-500.0,0.00019726,2]
[420375359,1776045044118,-500.0,0.00019726,2]
[420375360,1776045044127,-500.0,0.00019726,2]
[420375362,1776045044136,-500.0,0.00019726,2]
[420375365,1776045044148,-500.0,0.00019726,2]
[420375367,1776045044164,-500.0,0.00019726,2]
[420375369,1776045044173,-500.0,0.00019726,2]
[420375370,1776045044184,-619.95,0.00019726,2]
[420375372,1776045044193,-525.79755183,0.00019726,2]
[420375374,1776045044207,-500.0,0.00019726,2]
[420375376,1776045044216,-208.99902793,0.00019726,2]
[420375378,1776045044227,-502.07208178,0.00019726,2]
[420375380,1776045044236,-213.51807059,0.00019726,2]
[420375382,1776045044249,-225.38815727,0.00019726,2]
[420375384,1776045044257,-506.26226435,0.00019726,2]
[420375386,1776045044265,-500.0,0.00019726,2]
[420375387,1776045044275,-500.0,0.00019726,2]
[420375389,1776045044289,-500.0,0.00019726,2]
[420375391,1776045044300,-500.0,0.00019726,2]
[420375393,1776045044312,-500.0,0.00019726,2]
[420375395,1776045044321,-500.0,0.00019726,2]
[420375397,1776045044333,-500.0,0.00019726,2]
[420375399,1776045044355,-500.0,0.00019726,2]
[420375402,1776045044365,-500.0,0.00019726,2]
[420375403,1776045044374,-500.0,0.00019726,2]
[420375405,1776045044383,-500.0,0.00019726,2]
[420375407,1776045044401,-500.0,0.00019726,2]
[420375409,1776045044411,-500.0,0.00019726,2]
[420375411,1776045044420,-500.0,0.00019726,2]
[420375413,1776045044433,-500.0,0.00019726,2]
[420375415,1776045044450,-500.0,0.00019726,2]
[420375417,1776045044469,-500.0,0.00019726,2]
[420375419,1776045044485,-500.0,0.00019726,2]
[420375421,1776045044511,-440.19,0.00019726,2]
[420375423,1776045044526,-362.49816582,0.00019726,2]
[420375425,1776045044539,-500.0,0.00019726,2]
[420375427,1776045044549,-500.0,0.00019726,2]
[420375429,1776045044567,-205.91923278,0.00019726,2]
[420375432,1776045044594,-166.0,0.00019726,2]
[420375434,1776045044627,-500.0,0.00019726,2]
[420375437,1776045044639,-500.0,0.00019726,2]
[420375439,1776045044658,-500.0,0.00019726,2]
[420375441,1776045044698,-166.0,0.00019726,2]
[420375443,1776045044715,-648.0,0.00019726,2]
[420375445,1776045044739,-166.0,0.00019726,2]
[420375447,1776045044763,-500.0,0.00019726,2]
[420375449,1776045044776,-183.19283917,0.00019726,2]
[420375451,1776045044786,-648.0,0.00019726,2]
[420375453,1776045044800,-166.0,0.00019726,2]
[420375455,1776045044823,-172.0,0.00019726,2]
[420375457,1776045044834,-648.0,0.00019726,2]
[420375459,1776045044852,-166.0,0.00019726,2]
[420375462,1776045044892,-340.0,0.00019726,2]
[420375464,1776045044903,-648.0,0.00019726,2]
[420375466,1776045044925,-166.0,0.00019726,2]
[420375468,1776045044937,-340.0,0.00019726,2]
[420375470,1776045044951,-240.38055609,0.00019726,2]
[420375472,1776045044972,-648.0,0.00019726,2]
[420375474,1776045044981,-614.84572729,0.00019726,2]
[420375476,1776045044995,-340.0,0.00019726,2]
[420375478,1776045045024,-648.0,0.00019726,2]
[420375480,1776045045035,-178.96845099,0.00019726,2]
[420375482,1776045045045,-648.0,0.00019726,2]
[420375483,1776045045066,-648.0,0.00019726,2]
[420375484,1776045045076,-648.0,0.00019726,2]
[420375485,1776045045086,-648.0,0.00019726,2]
[420375486,1776045045099,-502.7118559,0.00019726,2]
[420375487,1776045045117,-648.0,0.00019726,2]
[420375488,1776045045127,-648.0,0.00019726,2]
[420375489,1776045045147,-648.0,0.00019726,2]
[420375490,1776045045158,-648.0,0.00019726,2]
[420375491,1776045045169,-648.0,0.00019726,2]
[420375492,1776045045186,-648.0,0.00019726,2]
[420375493,1776045045202,-648.0,0.00019726,2]
[420375494,1776045045212,-648.0,0.00019726,2]
[420375495,1776045045222,-649.76614705,0.00019726,2]
[420375496,1776045045236,-648.0,0.00019726,2]
[420375497,1776045045248,-648.0,0.00019726,2]
[420375498,1776045045263,-648.0,0.00019726,2]
[420375499,1776045045274,-656.95357848,0.00019726,2]
[420375500,1776045045285,-504.62719987,0.00019726,2]
[420375501,1776045045307,-500.0,0.00019726,2]
[420375502,1776045045318,-625.25571575,0.00019726,2]
[420375504,1776045045343,-595.76891255,0.00019726,2]
[420375507,1776045045371,-509.98218631,0.00019726,2]
[420375509,1776045045380,-500.0,0.00019726,2]
[420375511,1776045045411,-500.0,0.00019726,2]
[420375512,1776045045441,-500.0,0.00019726,2]
[420375514,1776045045455,-610.77832299,0.00019726,2]
[420375516,1776045045468,-500.0,0.00019726,2]
[420375518,1776045045478,-500.0,0.00019726,2]
[420375520,1776045045488,-500.0,0.00019726,2]
[420375522,1776045045503,-500.0,0.00019726,2]
[420375524,1776045045525,-500.0,0.00019726,2]
[420375526,1776045045536,-500.0,0.00019726,2]
[420375528,1776045045545,-395.43658456,0.00019726,2]
[420375530,1776045045568,-4171.66,0.00019726,2]
[420375532,1776045045578,-4171.66,0.00019726,2]
[420375534,1776045045595,-4171.66,0.00019726,2]
[420375537,1776045045605,-4171.66,0.00019726,2]
[420375538,1776045045618,-503.38217287,0.00019726,2]
[420375540,1776045045642,-4171.66,0.00019726,2]
[420375542,1776045045652,-4171.66,0.00019726,2]
[420375544,1776045045661,-4171.66,0.00019726,2]
[420375546,1776045045685,-4171.66,0.00019726,2]
[420375548,1776045045706,-4171.66,0.00019726,2]
[420375550,1776045045718,-4171.66,0.00019726,2]
[420375552,1776045045729,-500.0,0.00019726,2]
[420375554,1776045045743,-4171.66,0.00019726,2]
[420375556,1776045045758,-228.10278916,0.00019726,2]
[420375558,1776045045767,-4171.66,0.00019726,2]
[420375561,1776045045778,-4171.66,0.00019726,2]
[420375562,1776045045797,-4171.66,0.00019726,2]
[420375565,1776045045808,-4171.66,0.00019726,2]
[420375567,1776045045826,-4171.66,0.00019726,2]
[420375569,1776045045837,-4171.66,0.00019726,2]
[420375571,1776045045861,-4171.66,0.00019726,2]
[420375572,1776045045872,-4171.66,0.00019726,2]
[420375574,1776045045883,-4171.66,0.00019726,2]
[420375576,1776045045918,-4171.66,0.00019726,2]
[420375579,1776045045931,-4171.66,0.00019726,2]
[420375581,1776045045959,-4171.66,0.00019726,2]
[420375583,1776045045991,-4171.70130492,0.00019726,2]
[420375585,1776045046001,-518.05356004,0.00019726,2]
[420375587,1776045046027,-554.61,0.00019726,2]
[420375589,1776045046037,-554.61,0.00019726,2]
[420375591,1776045046051,-554.61,0.00019726,2]
[420375593,1776045046072,-554.61,0.00019726,2]
[420375594,1776045046081,-515.01,0.00019726,2]
[420375597,1776045046111,-554.61,0.00019726,2]
[420375599,1776045046120,-554.61,0.00019726,2]
[420375601,1776045046146,-554.61,0.00019726,2]
[420375603,1776045046157,-554.61,0.00019726,2]
[420375605,1776045046165,-554.61,0.00019726,2]
[420375606,1776045046187,-554.61,0.00019726,2]
[420375608,1776045046197,-554.61,0.00019726,2]
[420375610,1776045046207,-554.61,0.00019726,2]
[420375612,1776045046217,-554.61,0.00019726,2]
[420375614,1776045046233,-554.61,0.00019726,2]
[420375616,1776045046243,-554.61,0.00019726,2]
[420375618,1776045046254,-554.61,0.00019726,2]
[420375620,1776045046268,-554.61,0.00019726,2]
[420375623,1776045046285,-507.29565574,0.00019726,2]
[420375624,1776045046295,-554.61,0.00019726,2]
[420375627,1776045046310,-554.61,0.00019726,2]
[420375628,1776045046325,-503.23233399,0.00019726,2]
[420375631,1776045046334,-554.61,0.00019726,2]
[420375633,1776045046347,-554.61,0.00019726,2]
[420375634,1776045046358,-554.61,0.00019726,2]
[420375636,1776045046378,-554.61,0.00019726,2]
[420375638,1776045046390,-554.83887704,0.00019726,2]
[420375641,1776045046404,-500.0,0.00019726,2]
[420375643,1776045046421,-204.35998396,0.00019726,2]
[420375644,1776045046434,-248.16731634,0.00019726,2]
[420375646,1776045046447,-625.77064104,0.00019726,2]
[420375649,1776045046464,-500.0,0.00019726,2]
[420375651,1776045046476,-500.0,0.00019726,2]
[420375653,1776045046491,-500.0,0.00019726,2]
[420375655,1776045046510,-500.0,0.00019726,2]
[420375657,1776045046521,-500.0,0.00019726,2]
[420375659,1776045046536,-500.0,0.00019726,2]
[420375661,1776045046579,-500.0,0.00019726,2]
[420375663,1776045046614,-500.0,0.00019726,2]
[420375664,1776045046634,-500.0,0.00019726,2]
[420375666,1776045046661,-500.0,0.00019726,2]
[420375668,1776045046671,-500.0,0.00019726,2]
[420375670,1776045046685,-500.0,0.00019726,2]
[420375672,1776045046701,-500.0,0.00019726,2]
[420375674,1776045046710,-579.5076189,0.00019726,2]
[420375676,1776045046740,-500.0,0.00019726,2]
[420375678,1776045046750,-500.0,0.00019726,2]
[420375680,1776045046760,-500.0,0.00019726,2]
[420375682,1776045046779,-500.0,0.00019726,2]
[420375684,1776045046789,-500.0,0.00019726,2]
[420375686,1776045046798,-288.37434549,0.00019726,2]
[420375688,1776045046812,-500.0,0.00019726,2]
[420375690,1776045046829,-500.0,0.00019726,2]
[420375692,1776045046838,-500.0,0.00019726,2]
[420375694,1776045046848,-500.0,0.00019726,2]
[420375696,1776045046867,-314.24911452,0.00019726,2]
[420375698,1776045046890,-504.49384027,0.00019726,2]
[420375700,1776045046899,-500.0,0.00019726,2]
[420375702,1776045046909,-426.44517965,0.00019726,2]
[420375705,1776045046931,-502.65,0.00019726,2]
[420375707,1776045046941,-502.65,0.00019726,2]
[420375709,1776045046950,-502.65,0.00019726,2]
[420375711,1776045046967,-502.65,0.00019726,2]
[420375713,1776045046976,-506.21738113,0.00019726,2]
[420375715,1776045046986,-502.65,0.00019726,2]
[420375717,1776045046998,-502.65,0.00019726,2]
[420375720,1776045047017,-502.65,0.00019726,2]
[420375722,1776045047027,-502.65,0.00019726,2]
[420375723,1776045047039,-502.65,0.00019726,2]
[420375725,1776045047051,-502.65,0.00019726,2]
[420375727,1776045047065,-502.65,0.00019726,2]
[420375729,1776045047075,-502.65,0.00019726,2]
[420375732,1776045047087,-502.65,0.00019726,2]
[420375734,1776045047106,-502.65,0.00019726,2]
[420375735,1776045047117,-502.65,0.00019726,2]
[420375737,1776045047131,-502.65,0.00019726,2]
[420375739,1776045047168,-506.02144882,0.00019726,2]
[420375741,1776045047190,-502.65,0.00019726,2]
[420375744,1776045047255,-502.65,0.00019726,2]
[420375746,1776045047309,-502.65,0.00019726,2]
[420375748,1776045047361,-502.65,0.00019726,2]
[420375749,1776045047400,-502.65,0.00019726,2]
[420375751,1776045047408,-502.65,0.00019726,2]
[420375753,1776045047423,-502.65,0.00019726,2]
[420375755,1776045047438,-502.85184853,0.00019726,2]
[420375757,1776045047449,-549.50578391,0.00019726,2]
[420375759,1776045047464,-495.69839119,0.00019726,2]
[420375761,1776045047474,-506.47038659,0.00019726,2]
[420375763,1776045047490,-505.43623761,0.00019726,2]
[420375765,1776045047518,-505.30056375,0.00019726,2]
[420375767,1776045047530,-520.23858702,0.00019726,2]
[420375769,1776045047555,-506.69787389,0.00019726,2]
[420375771,1776045047569,-361.24874231,0.00019726,2]
[420375773,1776045047580,-167.710807,0.00019726,2]
[420375775,1776045047611,-506.42265294,0.00019726,2]
[420375776,1776045047639,-604.22258753,0.00019726,2]
[420375778,1776045047648,-504.41444787,0.00019726,2]
[420375780,1776045047676,-500.0,0.00019726,2]
[420375782,1776045047687,-167.77345494,0.00019726,2]
[420375784,1776045047707,-507.30106207,0.00019726,2]
[420375787,1776045047734,-500.0,0.00019726,2]
[420375789,1776045047744,-500.0,0.00019726,2]
[420375791,1776045047754,-500.0,0.00019726,2]
[420375792,1776045047766,-500.0,0.00019726,2]
[420375794,1776045047778,-506.4684411,0.00019726,2]
[420375796,1776045047788,-500.0,0.00019726,2]
[420375798,1776045047798,-357.72300818,0.00019726,2]
[420375800,1776045047808,-500.0,0.00019726,2]
[420375802,1776045047820,-500.0,0.00019726,2]
[420375804,1776045047830,-500.0,0.00019726,2]
[420375807,1776045047842,-500.0,0.00019726,2]
[420375809,1776045047851,-500.0,0.00019726,2]
[420375811,1776045047865,-500.0,0.00019726,2]
[420375813,1776045047876,-525.10068458,0.00019726,2]
[420375815,1776045047886,-503.41979883,0.00019726,2]
[420375817,1776045047901,-504.20820838,0.00019726,2]
[420375818,1776045047912,-500.0,0.00019726,2]
[420375820,1776045047922,-500.0,0.00019726,2]
[420375823,1776045047934,-500.0,0.00019726,2]
[420375825,1776045047957,-500.0,0.00019726,2]
[420375827,1776045047967,-500.0,0.00019726,2]
[420375829,1776045047979,-193.95636984,0.00019726,2]
[420375831,1776045048017,-500.0,0.00019726,2]
[420375833,1776045048027,-500.0,0.00019726,2]
[420375835,1776045048038,-564.06229495,0.00019726,2]
[420375836,1776045048070,-505.86091481,0.00019726,2]
[420375839,1776045048080,-513.13167206,0.00019726,2]
[420375841,1776045048090,-504.57283604,0.00019726,2]
[420375843,1776045048113,-541.66,0.00019726,2]
[420375845,1776045048141,-541.66,0.00019726,2]
[420375846,1776045048173,-506.37893988,0.00019726,2]
[420375848,1776045048184,-541.66,0.00019726,2]
[420375850,1776045048197,-541.66,0.00019726,2]
[420375852,1776045048208,-541.66,0.00019726,2]
[420375854,1776045048217,-541.66,0.00019726,2]
[420375856,1776045048230,-541.66,0.00019726,2]
[420375858,1776045048240,-541.66,0.00019726,2]
[420375860,1776045048250,-541.66,0.00019726,2]
[420375863,1776045048269,-541.66,0.00019726,2]